[Event "*** SCC Grand Prix: Titled Tuesday Blitz"]
[Site "Chess.com"]
[Date "2020.10.13"]
[Round "1"]
[White "IvanSoriano1"]
[Black "Ariadna_Atreides"]
[Result "1-0"]
[WhiteElo "2509"]
[BlackElo "2019"]
[TimeControl "180+1"]
[EndTime "10:07:28 PDT"]
[Termination "IvanSoriano1 won by checkmate"]

1. e4 {[%clk 0:03:00.9]} 1... c5 {[%clk 0:02:59.1]} 2. Nf3 {[%clk 0:02:59.9]}
2... d6 {[%clk 0:02:58.6]} 3. d4 {[%clk 0:02:58.2]} 3... cxd4 {[%clk 0:02:58.4]}
4. Nxd4 {[%clk 0:02:59.1]} 4... Nf6 {[%clk 0:02:58.4]} 5. Nc3 {[%clk 0:02:59.3]}
5... Nc6 {[%clk 0:02:58.9]} 6. Bg5 {[%clk 0:02:58.5]} 6... e6 {[%clk 0:02:58.3]}
7. Qd2 {[%clk 0:02:57.9]} 7... a6 {[%clk 0:02:58.6]} 8. O-O-O {[%clk 0:02:55.7]}
8... Bd7 {[%clk 0:02:59]} 9. f4 {[%clk 0:02:54.2]} 9... Be7 {[%clk 0:02:52.3]}
10. Bxf6 {[%clk 0:02:49]} 10... Bxf6 {[%clk 0:02:44.3]} 11. Nxc6 {[%clk
0:02:48.9]} 11... Bxc6 {[%clk 0:02:44.3]} 12. Qe3 {[%clk 0:02:44.4]} 12... Qc7
{[%clk 0:02:40.1]} 13. Bc4 {[%clk 0:02:41.8]} 13... Bxc3 {[%clk 0:02:29.6]} 14.
Qxc3 {[%clk 0:02:38.7]} 14... Bxe4 {[%clk 0:02:10.3]} 15. Qxg7 {[%clk
0:02:36.8]} 15... O-O-O {[%clk 0:01:54.6]} 16. Qd4 {[%clk 0:02:09.9]} 16... d5
{[%clk 0:01:32.5]} 17. Rhe1 {[%clk 0:01:48]} 17... Qxf4+ {[%clk 0:01:18.5]} 18.
Re3 {[%clk 0:01:37.7]} 18... dxc4 {[%clk 0:01:07.3]} 19. Qxc4+ {[%clk
0:01:24.1]} 19... Kb8 {[%clk 0:01:05.6]} 20. Qxe4 {[%clk 0:01:24.6]} 20... Rxd1+
{[%clk 0:00:48.6]} 21. Kxd1 {[%clk 0:01:25.5]} 21... Rd8+ {[%clk 0:00:30.6]} 22.
Ke2 {[%clk 0:01:22.3]} 22... Qxh2 {[%clk 0:00:27.7]} 23. Rb3 {[%clk 0:01:06.9]}
23... Qh5+ {[%clk 0:00:20]} 24. Kf2 {[%clk 0:00:58.4]} 24... Rd2+ {[%clk
0:00:16.7]} 25. Kg3 {[%clk 0:00:58.4]} 25... Qg5+ {[%clk 0:00:12.9]} 26. Kh2
{[%clk 0:00:52]} 26... Qh5+ {[%clk 0:00:08]} 27. Rh3 {[%clk 0:00:51.2]} 27...
Qc5 {[%clk 0:00:04.6]} 28. Rxh7 {[%clk 0:00:45.2]} 28... Qc7+ {[%clk 0:00:03.9]}
29. Kh3 {[%clk 0:00:43.7]} 29... Rxc2 {[%clk 0:00:03.8]} 30. Rh8+ {[%clk
0:00:42.1]} 30... Ka7 {[%clk 0:00:03.9]} 31. Qd4+ {[%clk 0:00:42]} 31... Qc5
{[%clk 0:00:03.6]} 32. Qd8 {[%clk 0:00:40.4]} 32... Rxb2 {[%clk 0:00:02.7]} 33.
Qb8+ {[%clk 0:00:32.8]} 33... Kb6 {[%clk 0:00:02.8]} 34. Rh4 {[%clk 0:00:31.4]}
34... Qc3+ {[%clk 0:00:02.2]} 35. Kh2 {[%clk 0:00:30.3]} 35... Qc2 {[%clk
0:00:02.4]} 36. Qd6+ {[%clk 0:00:21.4]} 36... Ka5 {[%clk 0:00:01.5]} 37. Rh5+
{[%clk 0:00:16.4]} 37... b5 {[%clk 0:00:01.9]} 38. Rg5 {[%clk 0:00:13.7]} 38...
Ka4 {[%clk 0:00:02.2]} 39. Rg4+ {[%clk 0:00:13.1]} 39... b4 {[%clk 0:00:01.4]}
40. Qxa6# {[%clk 0:00:12.9]} 1-0

[Event "*** SCC Grand Prix: Titled Tuesday Blitz"]
[Site "Chess.com"]
[Date "2020.10.13"]
[Round "1"]
[White "TigrVShlyape"]
[Black "ErikRonka"]
[Result "1-0"]
[WhiteElo "2836"]
[BlackElo "2437"]
[TimeControl "180+1"]
[EndTime "10:07:30 PDT"]
[Termination "TigrVShlyape won by resignation"]

1. d4 {[%clk 0:03:00.1]} 1... d5 {[%clk 0:02:59.6]} 2. Nf3 {[%clk 0:02:59.4]}
2... Nf6 {[%clk 0:02:59.2]} 3. Bf4 {[%clk 0:02:54.9]} 3... c5 {[%clk 0:02:59.7]}
4. e3 {[%clk 0:02:54.6]} 4... cxd4 {[%clk 0:02:59.8]} 5. exd4 {[%clk 0:02:53.2]}
5... Nc6 {[%clk 0:03:00.3]} 6. c3 {[%clk 0:02:49.8]} 6... Bf5 {[%clk 0:03:00.8]}
7. Nbd2 {[%clk 0:02:49.1]} 7... e6 {[%clk 0:03:00.7]} 8. Bb5 {[%clk 0:02:44.8]}
8... Bd6 {[%clk 0:02:52.8]} 9. Bxd6 {[%clk 0:02:43]} 9... Qxd6 {[%clk
0:02:52.2]} 10. O-O {[%clk 0:02:43.9]} 10... O-O {[%clk 0:02:52]} 11. Re1 {[%clk
0:02:31]} 11... Rfc8 {[%clk 0:02:40.2]} 12. a4 {[%clk 0:02:28.3]} 12... h6
{[%clk 0:02:22.3]} 13. a5 {[%clk 0:02:23.3]} 13... Ne4 {[%clk 0:01:58.9]} 14.
Nxe4 {[%clk 0:02:17.6]} 14... Bxe4 {[%clk 0:01:59.8]} 15. Nd2 {[%clk 0:02:17.3]}
15... Bf5 {[%clk 0:01:56.8]} 16. Qa4 {[%clk 0:02:16.2]} 16... a6 {[%clk
0:01:32.7]} 17. Bf1 {[%clk 0:02:14]} 17... Re8 {[%clk 0:01:23.8]} 18. Qa3 {[%clk
0:02:02.2]} 18... Qc7 {[%clk 0:01:16.2]} 19. Nb3 {[%clk 0:01:59.6]} 19... e5
{[%clk 0:01:04.3]} 20. dxe5 {[%clk 0:01:58.9]} 20... Nxe5 {[%clk 0:01:03]} 21.
Qc5 {[%clk 0:01:58]} 21... Nc6 {[%clk 0:00:19]} 22. Nd4 {[%clk 0:01:52.7]} 22...
Be6 {[%clk 0:00:17.2]} 23. Nxc6 {[%clk 0:01:43]} 23... Qxc6 {[%clk 0:00:16.7]}
24. Qd4 {[%clk 0:01:39.7]} 24... Rad8 {[%clk 0:00:16]} 25. Re5 {[%clk
0:01:37.5]} 25... Rd7 {[%clk 0:00:15.4]} 26. Rae1 {[%clk 0:01:35.4]} 26... Qc7
{[%clk 0:00:14.4]} 27. f4 {[%clk 0:01:33.2]} 27... Rde7 {[%clk 0:00:10.1]} 28.
Bd3 {[%clk 0:01:25.6]} 28... g6 {[%clk 0:00:10]} 29. b4 {[%clk 0:01:21.8]} 29...
Bc8 {[%clk 0:00:08.8]} 30. Kf2 {[%clk 0:01:09.3]} 30... Rxe5 {[%clk 0:00:08.5]}
31. Rxe5 {[%clk 0:01:08.1]} 31... Rxe5 {[%clk 0:00:08.4]} 32. Qxe5 {[%clk
0:01:08.6]} 32... Qd7 {[%clk 0:00:05.3]} 33. h3 {[%clk 0:01:05.3]} 33... Qd8
{[%clk 0:00:04]} 34. Kf3 {[%clk 0:00:42.9]} 34... Be6 {[%clk 0:00:04.5]} 35. Qd4
{[%clk 0:00:32.1]} 35... Qh4 {[%clk 0:00:04.1]} 36. Qe3 {[%clk 0:00:25.6]} 36...
Qd8 {[%clk 0:00:03.9]} 37. Kf2 {[%clk 0:00:25.2]} 37... Qh4+ {[%clk 0:00:03.8]}
38. Kg1 {[%clk 0:00:25.1]} 38... Qd8 {[%clk 0:00:04.7]} 39. Kh2 {[%clk
0:00:24.7]} 39... Qc8 {[%clk 0:00:05.1]} 40. Qd4 {[%clk 0:00:24.6]} 40... Qc7
{[%clk 0:00:05.5]} 41. g4 {[%clk 0:00:23.9]} 41... g5 {[%clk 0:00:05.6]} 42. Kg3
{[%clk 0:00:23.5]} 42... Qd6 {[%clk 0:00:04.3]} 43. Kf3 {[%clk 0:00:23.3]} 43...
Qc7 {[%clk 0:00:04.5]} 44. Qe5 {[%clk 0:00:21.8]} 44... Qd7 {[%clk 0:00:02.2]}
45. f5 {[%clk 0:00:21.8]} 1-0

[Event "*** SCC Grand Prix: Titled Tuesday Blitz"]
[Site "Chess.com"]
[Date "2020.10.13"]
[Round "1"]
[White "JuliaEfremova"]
[Black "Mazetovic"]
[Result "0-1"]
[WhiteElo "2314"]
[BlackElo "2644"]
[TimeControl "180+1"]
[EndTime "10:07:30 PDT"]
[Termination "Mazetovic won by resignation"]

1. d4 {[%clk 0:03:00.3]} 1... Nf6 {[%clk 0:02:57.6]} 2. Bf4 {[%clk 0:03:00.3]}
2... d5 {[%clk 0:02:54.6]} 3. e3 {[%clk 0:03:00.5]} 3... c5 {[%clk 0:02:54.9]}
4. c3 {[%clk 0:02:59.7]} 4... Nc6 {[%clk 0:02:54]} 5. Nf3 {[%clk 0:02:58]} 5...
Qb6 {[%clk 0:02:51.7]} 6. Na3 {[%clk 0:02:57.2]} 6... a6 {[%clk 0:02:34.5]} 7.
Qb3 {[%clk 0:02:48.4]} 7... Qa7 {[%clk 0:02:18.3]} 8. Be2 {[%clk 0:02:32.7]}
8... e6 {[%clk 0:02:17.6]} 9. Nb1 {[%clk 0:02:25.4]} 9... c4 {[%clk 0:02:11.7]}
10. Qc2 {[%clk 0:02:20.8]} 10... b5 {[%clk 0:02:12]} 11. Nbd2 {[%clk 0:02:18.1]}
11... Be7 {[%clk 0:02:04.9]} 12. O-O {[%clk 0:02:03.3]} 12... O-O {[%clk
0:02:04.5]} 13. Ne5 {[%clk 0:01:57.3]} 13... Nxe5 {[%clk 0:01:58.5]} 14. Bxe5
{[%clk 0:01:50.7]} 14... Bd7 {[%clk 0:01:49.8]} 15. e4 {[%clk 0:01:47.5]} 15...
dxe4 {[%clk 0:01:44.4]} 16. Nxe4 {[%clk 0:01:47.5]} 16... Nd5 {[%clk 0:01:43.2]}
17. Bf3 {[%clk 0:01:37.2]} 17... Bc6 {[%clk 0:01:41.5]} 18. Rae1 {[%clk
0:01:34.3]} 18... Qb7 {[%clk 0:01:40.3]} 19. Re2 {[%clk 0:01:21.3]} 19... Rad8
{[%clk 0:01:33]} 20. Rfe1 {[%clk 0:01:21.2]} 20... Rfe8 {[%clk 0:01:33]} 21. Ng3
{[%clk 0:01:17.5]} 21... b4 {[%clk 0:01:22.7]} 22. Nh5 {[%clk 0:01:15.3]} 22...
g6 {[%clk 0:01:17]} 23. Nf4 {[%clk 0:01:10.9]} 23... Nxf4 {[%clk 0:01:14.9]} 24.
Bxf4 {[%clk 0:01:11]} 24... Bxf3 {[%clk 0:01:14.8]} 25. gxf3 {[%clk 0:01:11]}
25... Qxf3 {[%clk 0:01:14.8]} 26. Bg3 {[%clk 0:01:06.2]} 26... a5 {[%clk
0:01:13.5]} 27. cxb4 {[%clk 0:01:01.9]} 27... Bxb4 {[%clk 0:01:10.8]} 28. Re3
{[%clk 0:01:00.5]} 28... Qd5 {[%clk 0:01:05.2]} 29. Rd1 {[%clk 0:00:55.1]} 29...
Rc8 {[%clk 0:01:05]} 30. Re5 {[%clk 0:00:48.9]} 30... Qa8 {[%clk 0:00:51.2]} 31.
d5 {[%clk 0:00:49.1]} 31... Bd6 {[%clk 0:00:49.7]} 32. Re2 {[%clk 0:00:38.9]}
32... Bxg3 {[%clk 0:00:49.5]} 33. hxg3 {[%clk 0:00:39.8]} 33... exd5 {[%clk
0:00:49.2]} 34. Red2 {[%clk 0:00:37.7]} 34... Re5 {[%clk 0:00:44.5]} 35. Qc3
{[%clk 0:00:37.2]} 35... Rce8 {[%clk 0:00:44]} 36. Qf3 {[%clk 0:00:35.4]} 36...
Re1+ {[%clk 0:00:39.8]} 37. Rxe1 {[%clk 0:00:35.6]} 37... Rxe1+ {[%clk
0:00:39.3]} 38. Kg2 {[%clk 0:00:36.5]} 38... Re5 {[%clk 0:00:39]} 39. Rd4 {[%clk
0:00:35.7]} 39... Qc6 {[%clk 0:00:36.9]} 40. Qf4 {[%clk 0:00:35.4]} 40... Qe6
{[%clk 0:00:36.2]} 41. Qd2 {[%clk 0:00:32.6]} 41... a4 {[%clk 0:00:27.9]} 42.
Rf4 {[%clk 0:00:29.1]} 42... Re4 {[%clk 0:00:25]} 43. Rf3 {[%clk 0:00:27.3]}
43... d4 {[%clk 0:00:25.3]} 44. Qb4 {[%clk 0:00:26.3]} 44... d3 {[%clk
0:00:24.3]} 45. Qxa4 {[%clk 0:00:19.3]} 45... Qd5 {[%clk 0:00:22.7]} 46. Qd1
{[%clk 0:00:15.1]} 46... Re6 {[%clk 0:00:21]} 47. Qd2 {[%clk 0:00:15.2]} 47...
Rf6 {[%clk 0:00:20.7]} 48. Qf4 {[%clk 0:00:11.5]} 48... Rxf4 {[%clk 0:00:20.2]}
0-1

[Event "*** SCC Grand Prix: Titled Tuesday Blitz"]
[Site "Chess.com"]
[Date "2020.10.13"]
[Round "1"]
[White "Cayse"]
[Black "peixe64"]
[Result "1-0"]
[WhiteElo "2725"]
[BlackElo "2369"]
[TimeControl "180+1"]
[EndTime "10:07:32 PDT"]
[Termination "Cayse won on time"]

1. d4 {[%clk 0:03:00.7]} 1... Nf6 {[%clk 0:03:00]} 2. Bf4 {[%clk 0:03:00.9]}
2... d5 {[%clk 0:02:57.3]} 3. e3 {[%clk 0:02:54.4]} 3... e6 {[%clk 0:02:56.7]}
4. Nf3 {[%clk 0:02:54]} 4... Bd6 {[%clk 0:02:56.6]} 5. Nbd2 {[%clk 0:02:53.8]}
5... O-O {[%clk 0:02:49.4]} 6. Bd3 {[%clk 0:02:52.6]} 6... c5 {[%clk 0:02:44.7]}
7. dxc5 {[%clk 0:02:51.8]} 7... Bxf4 {[%clk 0:02:42.2]} 8. exf4 {[%clk
0:02:51.8]} 8... Qc7 {[%clk 0:02:32.8]} 9. g3 {[%clk 0:02:51]} 9... Qxc5 {[%clk
0:02:27]} 10. O-O {[%clk 0:02:49.8]} 10... Nc6 {[%clk 0:02:23.3]} 11. c3 {[%clk
0:02:47.6]} 11... Bd7 {[%clk 0:02:11.3]} 12. Ne5 {[%clk 0:02:42]} 12... Rfd8
{[%clk 0:01:50.1]} 13. Qe2 {[%clk 0:02:40.7]} 13... Be8 {[%clk 0:01:47.3]} 14.
Ndf3 {[%clk 0:02:28.5]} 14... h6 {[%clk 0:01:30.3]} 15. Rac1 {[%clk 0:02:27.2]}
15... Rac8 {[%clk 0:01:29]} 16. Rfe1 {[%clk 0:02:13.1]} 16... a5 {[%clk
0:01:10]} 17. Nxc6 {[%clk 0:01:35.9]} 17... bxc6 {[%clk 0:01:05.9]} 18. Ne5
{[%clk 0:01:36.8]} 18... Rb8 {[%clk 0:01:02.5]} 19. Red1 {[%clk 0:01:33.4]}
19... Qb6 {[%clk 0:01:01.8]} 20. Rd2 {[%clk 0:01:33.4]} 20... c5 {[%clk
0:00:57]} 21. c4 {[%clk 0:01:28.8]} 21... a4 {[%clk 0:00:45.6]} 22. Rcd1 {[%clk
0:01:24.7]} 22... Qb4 {[%clk 0:00:41.2]} 23. Bb1 {[%clk 0:01:19.4]} 23... a3
{[%clk 0:00:30.2]} 24. b3 {[%clk 0:01:19]} 24... Rb6 {[%clk 0:00:21.8]} 25. g4
{[%clk 0:01:09.2]} 25... d4 {[%clk 0:00:17]} 26. g5 {[%clk 0:01:03]} 26... hxg5
{[%clk 0:00:12]} 27. fxg5 {[%clk 0:01:02.4]} 27... Nd7 {[%clk 0:00:12.6]} 28.
Nd3 {[%clk 0:00:55.9]} 28... Qa5 {[%clk 0:00:12]} 29. Qe4 {[%clk 0:00:53]} 29...
f5 {[%clk 0:00:10.3]} 30. Qf4 {[%clk 0:00:43.7]} 30... Qa8 {[%clk 0:00:09.2]}
31. Re1 {[%clk 0:00:43.4]} 31... Qc6 {[%clk 0:00:05.9]} 32. Bc2 {[%clk
0:00:41.1]} 32... Qd6 {[%clk 0:00:06.3]} 33. Bd1 {[%clk 0:00:40.1]} 33... Qxf4
{[%clk 0:00:06.1]} 34. Nxf4 {[%clk 0:00:40.9]} 34... e5 {[%clk 0:00:06.7]} 35.
Nd5 {[%clk 0:00:39.3]} 35... Rd6 {[%clk 0:00:07.1]} 36. Ne7+ {[%clk 0:00:36.8]}
36... Kf8 {[%clk 0:00:07.2]} 37. Nxf5 {[%clk 0:00:37.7]} 37... Rg6 {[%clk
0:00:07]} 38. h4 {[%clk 0:00:37.3]} 38... Bf7 {[%clk 0:00:05.8]} 39. Ng3 {[%clk
0:00:36.8]} 39... Be6 {[%clk 0:00:05.6]} 40. Bh5 {[%clk 0:00:34.3]} 40... Bf7
{[%clk 0:00:01.6]} 41. Bxg6 {[%clk 0:00:33.9]} 41... Bxg6 {[%clk 0:00:02.5]} 42.
h5 {[%clk 0:00:32.8]} 42... Bf7 {[%clk 0:00:03]} 43. g6 {[%clk 0:00:32.7]} 43...
Be6 {[%clk 0:00:03.3]} 44. f4 {[%clk 0:00:32.9]} 44... exf4 {[%clk 0:00:02.8]}
45. Rf2 {[%clk 0:00:33.1]} 45... Nf6 {[%clk 0:00:02]} 46. Rxf4 {[%clk
0:00:33.4]} 46... Re8 {[%clk 0:00:01.9]} 47. h6 {[%clk 0:00:32.8]} 47... Re7
{[%clk 0:00:02.8]} 48. h7 {[%clk 0:00:32.6]} 1-0

[Event "*** SCC Grand Prix: Titled Tuesday Blitz"]
[Site "Chess.com"]
[Date "2020.10.13"]
[Round "1"]
[White "Vamostodorecto"]
[Black "wannabe2700"]
[Result "0-1"]
[WhiteElo "2372"]
[BlackElo "2721"]
[TimeControl "180+1"]
[EndTime "10:07:33 PDT"]
[Termination "wannabe2700 won on time"]

1. d4 {[%clk 0:03:00.1]} 1... f5 {[%clk 0:03:00.1]} 2. e4 {[%clk 0:02:59.3]}
2... fxe4 {[%clk 0:02:59.4]} 3. Nc3 {[%clk 0:02:59.9]} 3... Nf6 {[%clk
0:02:59.7]} 4. Bg5 {[%clk 0:03:00]} 4... Nc6 {[%clk 0:02:59.8]} 5. d5 {[%clk
0:03:00.5]} 5... Ne5 {[%clk 0:02:59.6]} 6. Qe2 {[%clk 0:03:01.1]} 6... Nf7
{[%clk 0:02:59.1]} 7. h4 {[%clk 0:03:00.1]} 7... c6 {[%clk 0:02:54.6]} 8. O-O-O
{[%clk 0:02:59.2]} 8... Nxd5 {[%clk 0:02:28.2]} 9. Nxd5 {[%clk 0:03:00.1]} 9...
cxd5 {[%clk 0:02:28]} 10. Rxd5 {[%clk 0:03:00.1]} 10... b5 {[%clk 0:02:24]} 11.
Qxb5 {[%clk 0:02:47.7]} 11... a6 {[%clk 0:02:10.3]} 12. Qb3 {[%clk 0:02:43.3]}
12... Nxg5 {[%clk 0:01:54.8]} 13. hxg5 {[%clk 0:02:41.8]} 13... e6 {[%clk
0:01:52.9]} 14. Re5 {[%clk 0:02:07.5]} 14... d5 {[%clk 0:01:50.4]} 15. g6 {[%clk
0:01:52.6]} 15... h6 {[%clk 0:01:31.3]} 16. Qa4+ {[%clk 0:01:44.3]} 16... Bd7
{[%clk 0:01:20.9]} 17. Qd4 {[%clk 0:01:26.5]} 17... Qf6 {[%clk 0:01:12.3]} 18.
c3 {[%clk 0:00:47.3]} 18... Bc6 {[%clk 0:00:43.7]} 19. f3 {[%clk 0:00:46.3]}
19... Bd6 {[%clk 0:00:41.1]} 20. Reh5 {[%clk 0:00:38.8]} 20... O-O {[%clk
0:00:16.5]} 21. Be2 {[%clk 0:00:29.9]} 21... Qxg6 {[%clk 0:00:13.7]} 22. g4
{[%clk 0:00:22.7]} 22... Bf4+ {[%clk 0:00:12.7]} 23. Kb1 {[%clk 0:00:18.2]}
23... e5 {[%clk 0:00:13.6]} 24. Qd1 {[%clk 0:00:15.3]} 24... exf3+ {[%clk
0:00:13.5]} 25. Bd3 {[%clk 0:00:15.9]} 25... e4 {[%clk 0:00:13.9]} 26. Bc2
{[%clk 0:00:13.5]} 26... Qxg4 {[%clk 0:00:13.4]} 27. Rxd5 {[%clk 0:00:12.3]}
27... Rae8 {[%clk 0:00:05.7]} 28. Nxf3 {[%clk 0:00:06.9]} 28... Qxf3 {[%clk
0:00:05.1]} 29. Qd4 {[%clk 0:00:05.1]} 29... Bxd5 {[%clk 0:00:03.7]} 30. Qxd5+
{[%clk 0:00:04.8]} 30... Kh8 {[%clk 0:00:04.3]} 31. Rg1 {[%clk 0:00:03.8]} 31...
Be3 {[%clk 0:00:03.2]} 32. Rg6 {[%clk 0:00:02.4]} 32... Qf1+ {[%clk 0:00:02.8]}
33. Bd1 {[%clk 0:00:03]} 33... Qd3+ {[%clk 0:00:03.1]} 34. Qxd3 {[%clk 0:00:02]}
34... exd3 {[%clk 0:00:04]} 35. Rxa6 {[%clk 0:00:01.6]} 35... Rf1 {[%clk
0:00:04.1]} 0-1

[Event "*** SCC Grand Prix: Titled Tuesday Blitz"]
[Site "Chess.com"]
[Date "2020.10.13"]
[Round "1"]
[White "German_Bazeev"]
[Black "anpospan"]
[Result "1-0"]
[WhiteElo "2720"]
[BlackElo "2371"]
[TimeControl "180+1"]
[EndTime "10:07:39 PDT"]
[Termination "German_Bazeev won on time"]

1. d4 {[%clk 0:03:00.5]} 1... Nf6 {[%clk 0:02:58.9]} 2. Nf3 {[%clk 0:03:00.4]}
2... c5 {[%clk 0:02:58.9]} 3. c3 {[%clk 0:02:59]} 3... b6 {[%clk 0:02:57.2]} 4.
Bg5 {[%clk 0:02:58.4]} 4... Bb7 {[%clk 0:02:54.2]} 5. Bxf6 {[%clk 0:02:58.1]}
5... gxf6 {[%clk 0:02:51.3]} 6. Nbd2 {[%clk 0:02:57.4]} 6... d6 {[%clk
0:02:48.1]} 7. g3 {[%clk 0:02:55.5]} 7... f5 {[%clk 0:02:45.6]} 8. e3 {[%clk
0:02:51]} 8... Nd7 {[%clk 0:02:43.5]} 9. Bg2 {[%clk 0:02:50.8]} 9... e6 {[%clk
0:02:41.2]} 10. O-O {[%clk 0:02:45.7]} 10... Be7 {[%clk 0:02:35.2]} 11. Ne1
{[%clk 0:02:43.8]} 11... Bxg2 {[%clk 0:02:33.4]} 12. Nxg2 {[%clk 0:02:44.7]}
12... O-O {[%clk 0:02:30.8]} 13. Nf4 {[%clk 0:02:40.7]} 13... Nf6 {[%clk
0:02:27.7]} 14. Nh5 {[%clk 0:02:30.6]} 14... Nxh5 {[%clk 0:02:24.1]} 15. Qxh5
{[%clk 0:02:31.5]} 15... Bf6 {[%clk 0:02:19.9]} 16. Rad1 {[%clk 0:02:21.9]}
16... Qe7 {[%clk 0:02:18.4]} 17. Rfe1 {[%clk 0:02:19.1]} 17... Bg7 {[%clk
0:02:17]} 18. e4 {[%clk 0:02:13.7]} 18... cxd4 {[%clk 0:02:03.1]} 19. cxd4
{[%clk 0:02:11.7]} 19... Bxd4 {[%clk 0:01:43.9]} 20. exf5 {[%clk 0:02:10.3]}
20... Bxb2 {[%clk 0:01:33.8]} 21. Ne4 {[%clk 0:01:44]} 21... Bf6 {[%clk
0:00:58]} 22. Qh6 {[%clk 0:01:26.9]} 22... Bg7 {[%clk 0:00:52.3]} 23. f6 {[%clk
0:01:26.6]} 23... Bxh6 {[%clk 0:00:45.2]} 24. fxe7 {[%clk 0:01:26.4]} 24... Rfe8
{[%clk 0:00:39.7]} 25. Nf6+ {[%clk 0:01:25]} 25... Kg7 {[%clk 0:00:39.4]} 26.
Nxe8+ {[%clk 0:01:25.3]} 26... Rxe8 {[%clk 0:00:39]} 27. Rxd6 {[%clk 0:01:26.2]}
27... Rxe7 {[%clk 0:00:38.8]} 28. Red1 {[%clk 0:01:26.8]} 28... Bg5 {[%clk
0:00:24.8]} 29. Rd7 {[%clk 0:01:26.1]} 29... a5 {[%clk 0:00:23]} 30. Rxe7 {[%clk
0:01:26.1]} 30... Bxe7 {[%clk 0:00:23]} 31. Rd7 {[%clk 0:01:27]} 31... Bc5
{[%clk 0:00:21.7]} 32. Kg2 {[%clk 0:01:22.4]} 32... Kg6 {[%clk 0:00:20.9]} 33.
f4 {[%clk 0:01:22.2]} 33... h5 {[%clk 0:00:20]} 34. Kf3 {[%clk 0:01:21.9]} 34...
f5 {[%clk 0:00:18]} 35. a4 {[%clk 0:01:18]} 35... Bg1 {[%clk 0:00:16.8]} 36. h3
{[%clk 0:01:17.5]} 36... Bc5 {[%clk 0:00:16.3]} 37. Rc7 {[%clk 0:01:13.5]} 37...
Kf6 {[%clk 0:00:15.6]} 38. g4 {[%clk 0:01:06.1]} 38... hxg4+ {[%clk 0:00:15]}
39. hxg4 {[%clk 0:01:07]} 39... fxg4+ {[%clk 0:00:14.3]} 40. Kxg4 {[%clk
0:01:07.9]} 40... Kg6 {[%clk 0:00:12.2]} 41. Kf3 {[%clk 0:01:02.7]} 41... Kf5
{[%clk 0:00:11.2]} 42. Rh7 {[%clk 0:00:54.3]} 42... Kg6 {[%clk 0:00:09.2]} 43.
Rh2 {[%clk 0:00:51.5]} 43... Kf5 {[%clk 0:00:08.3]} 44. Rh5+ {[%clk 0:00:50.6]}
44... Kg6 {[%clk 0:00:07.2]} 45. Rg5+ {[%clk 0:00:50.4]} 45... Kf6 {[%clk
0:00:07.2]} 46. Ke4 {[%clk 0:00:50.4]} 46... Bd6 {[%clk 0:00:05.7]} 47. Rh5
{[%clk 0:00:47.8]} 47... Bc5 {[%clk 0:00:05.6]} 48. Rh6+ {[%clk 0:00:46]} 48...
Kf7 {[%clk 0:00:04.6]} 49. Ke5 {[%clk 0:00:42.3]} 49... Be3 {[%clk 0:00:03.3]}
50. Rf6+ {[%clk 0:00:40.4]} 50... Ke7 {[%clk 0:00:01]} 51. Rxe6+ {[%clk
0:00:40.2]} 51... Kd7 {[%clk 0:00:01]} 52. f5 {[%clk 0:00:41.1]} 1-0

[Event "*** SCC Grand Prix: Titled Tuesday Blitz"]
[Site "Chess.com"]
[Date "2020.10.13"]
[Round "1"]
[White "GameOverBro"]
[Black "MikeSailer"]
[Result "1-0"]
[WhiteElo "2522"]
[BlackElo "2092"]
[TimeControl "180+1"]
[EndTime "10:07:39 PDT"]
[Termination "GameOverBro won by checkmate"]

1. e4 {[%clk 0:03:00]} 1... d5 {[%clk 0:02:59.1]} 2. exd5 {[%clk 0:02:59.7]}
2... Qxd5 {[%clk 0:02:59.4]} 3. Nc3 {[%clk 0:03:00.2]} 3... Qd6 {[%clk
0:02:59.3]} 4. d4 {[%clk 0:02:58.3]} 4... Nf6 {[%clk 0:02:59.4]} 5. Bc4 {[%clk
0:02:58]} 5... c6 {[%clk 0:02:59.3]} 6. Nge2 {[%clk 0:02:56.6]} 6... Bg4 {[%clk
0:02:58.9]} 7. f3 {[%clk 0:02:53.2]} 7... Bf5 {[%clk 0:02:55.8]} 8. Bf4 {[%clk
0:02:48.8]} 8... Qd8 {[%clk 0:02:55.4]} 9. Qd2 {[%clk 0:02:46.1]} 9... e6 {[%clk
0:02:55.3]} 10. h4 {[%clk 0:02:45.8]} 10... h6 {[%clk 0:02:53.3]} 11. g4 {[%clk
0:02:44.6]} 11... Bh7 {[%clk 0:02:53]} 12. O-O-O {[%clk 0:02:40.5]} 12... Bb4
{[%clk 0:02:40.9]} 13. a3 {[%clk 0:02:37.6]} 13... Bd6 {[%clk 0:02:39.2]} 14.
Kb1 {[%clk 0:02:31.2]} 14... Qc7 {[%clk 0:02:30]} 15. Bxd6 {[%clk 0:02:15.9]}
15... Qxd6 {[%clk 0:02:28.9]} 16. g5 {[%clk 0:02:11.6]} 16... Nd5 {[%clk
0:02:15.7]} 17. Ne4 {[%clk 0:02:06.8]} 17... Qe7 {[%clk 0:02:02.9]} 18. gxh6
{[%clk 0:01:52.2]} 18... gxh6 {[%clk 0:02:02.8]} 19. Qxh6 {[%clk 0:01:50.3]}
19... Nd7 {[%clk 0:02:02.9]} 20. Qg5 {[%clk 0:01:38.5]} 20... f6 {[%clk
0:01:55.8]} 21. Qh5+ {[%clk 0:01:27.5]} 21... Kd8 {[%clk 0:01:56.3]} 22. Qh6
{[%clk 0:01:14]} 22... Kc7 {[%clk 0:01:45.4]} 23. Qd2 {[%clk 0:01:13.3]} 23...
b5 {[%clk 0:01:33.7]} 24. Bd3 {[%clk 0:01:12]} 24... a5 {[%clk 0:01:31.9]} 25.
Nf4 {[%clk 0:01:05.7]} 25... b4 {[%clk 0:01:13.9]} 26. a4 {[%clk 0:01:05.2]}
26... b3 {[%clk 0:01:09]} 27. c4 {[%clk 0:00:49.8]} 27... Nb4 {[%clk 0:00:57.9]}
28. Rhe1 {[%clk 0:00:49.1]} 28... Nb6 {[%clk 0:00:55.2]} 29. Nc5 {[%clk
0:00:44.5]} 29... Bxd3+ {[%clk 0:00:47.9]} 30. Nfxd3 {[%clk 0:00:40.8]} 30...
Nxc4 {[%clk 0:00:43.5]} 31. Qc3 {[%clk 0:00:33.4]} 31... Nb6 {[%clk 0:00:26.9]}
32. Nxe6+ {[%clk 0:00:31]} 32... Kb8 {[%clk 0:00:23.1]} 33. Nec5 {[%clk
0:00:23.8]} 33... Qh7 {[%clk 0:00:22.6]} 34. Qxb3 {[%clk 0:00:21.2]} 34... N6d5
{[%clk 0:00:21.9]} 35. Ka1 {[%clk 0:00:18.9]} 35... Ka7 {[%clk 0:00:20.3]} 36.
Nxb4 {[%clk 0:00:14.8]} 36... Nxb4 {[%clk 0:00:19.5]} 37. Rc1 {[%clk 0:00:11.6]}
37... Rab8 {[%clk 0:00:19]} 38. Re6 {[%clk 0:00:08.5]} 38... Rhc8 {[%clk
0:00:14.8]} 39. Qc3 {[%clk 0:00:06.8]} 39... Nd5 {[%clk 0:00:09.4]} 40. Qxa5#
{[%clk 0:00:05.8]} 1-0